bitfinex/quotes_ETHUSD_20260108
["timestamp","ask_amount","ask_price","bid_price","bid_amount"]
[1767895751973,0.002,3129.6,3128.7,3.41475989]
[1767895752308,0.002,3129.6,3128.8,3.6369821]
[1767895752875,0.9482106,3129.6,3128.8,3.6369821]
[1767895753799,0.9482106,3129.6,3128.8,0.44089369]
[1767895753977,4.14360661,3129.6,3128.8,0.44089369]
[1767895754708,0.9462106,3129.5,3128.8,0.44089369]
[1767895754924,0.9462106,3129.3,3128.6,0.001]
[1767895755892,3.19570497,3129.2,3128.6,0.001]
[1767895756308,0.9462106,3129.1,3128.6,0.001]
[1767895757926,3.19539862,3129.5,3128.6,0.995177]
[1767895758224,3.19539862,3129.5,3128.6,4.19139884]
[1767895758387,4.14160922,3129.5,3128.7,0.4223363]
[1767895758583,0.9462106,3129.4,3128.7,0.4223363]
[1767895758797,0.9462106,3129.4,3128.6,3.1973059]
[1767895759112,0.9462106,3129.4,3128.6,6.39362374]
[1767895759413,0.9462106,3129.4,3128.6,3.1973059]
[1767895760226,3.19560285,3129.3,3128.6,0.001]
[1767895760428,4.14175768,3129.4,3128.6,0.001]
[1767895760622,4.14175768,3129.4,3128.6,0.73980014]
[1767895762413,0.9462106,3129.3,3128.6,0.73980014]
[1767895762625,0.9462106,3129.3,3128.6,0.001]
[1767895764519,4.14191557,3129.2,3128.6,0.001]
[1767895764707,0.9462106,3129.1,3128.7,0.001]
[1767895767592,4.14203102,3129.1,3128.7,0.001]
[1767895770396,0.9462106,3129.1,3128.7,0.001]
[1767895772928,4.14182223,3129.3,3128.7,0.001]
[1767895776731,4.14187623,3129.3,3128.7,0.001]
[1767895776935,0.002,3129.6,3128.8,0.98906907]
[1767895777154,4.20422444,3129.6,3128.8,0.98906907]
[1767895777423,1.00691831,3129.5,3128.8,0.98906907]
[1767895777646,1.00691831,3129.5,3128.9,0.001]
[1767895777806,0.002,3129.6,3128.9,1.02202918]
[1767895778227,0.002,3129.6,3128.9,1.86102918]
[1767895778409,0.002,3129.6,3129.0,0.18610292]
[1767895779033,0.002,3129.6,3129.0,3.38194553]
[1767895779607,0.002,3129.6,3129.0,0.18610292]
[1767895779808,1.00891831,3129.6,3129.0,0.18610292]
[1767895780605,1.00891831,3129.6,3129.0,3.3819968]
[1767895780805,1.00891831,3129.6,3129.1,0.42219968]
[1767895781005,0.002,3129.6,3129.1,0.42219968]
[1767895782228,0.002,3129.6,3129.1,4.60707219]
[1767895783411,0.002,3129.6,3129.2,0.98906907]
[1767895785332,1.00691831,3130.0,3129.1,6.81381022]
[1767895785534,0.002,3130.4,3129.3,0.98906907]
[1767895785535,1.00691831,3130.3,3129.3,0.98906907]
[1767895785724,1.00691831,3130.3,3129.4,0.839]
[1767895785912,1.00691831,3130.3,3129.4,1.82806907]
[1767895786112,1.00691831,3130.3,3129.4,0.839]
[1767895787142,1.00691831,3130.1,3129.4,4.03447136]
[1767895787331,1.00691831,3130.1,3129.5,0.40344714]
[1767895788710,1.00891831,3130.4,3129.5,1.39251621]
[1767895788943,0.002,3130.4,3129.6,0.98906907]
[1767895789242,0.002,3130.4,3129.7,6.39038884]
[1767895789243,1.00891831,3130.4,3129.7,6.39038884]
[1767895789613,0.002,3130.4,3129.7,6.39038884]
[1767895789819,0.002,3130.4,3129.9,0.98906907]
[1767895790042,0.002,3130.4,3129.9,1.82706907]
[1767895790239,0.002,3130.4,3129.9,0.838]
[1767895790746,0.002,3130.5,3129.9,1.82706907]
[1767895790936,0.002,3130.3,3129.9,1.82706907]
[1767895791135,0.002,3130.3,3130.0,0.25650149]
[1767895791326,0.002,3130.3,3129.9,0.98906907]
[1767895791644,0.002,3130.3,3129.8,0.838]
[1767895792046,0.002,3130.3,3129.8,1.82706907]
[1767895793244,0.002,3130.3,3129.1,3.1957753]
[1767895793245,1.00891831,3130.3,3129.3,0.98906907]
[1767895793448,1.00891831,3130.3,3129.2,0.838]
[1767895793641,1.00891831,3130.3,3129.1,3.19575522]
[1767895793954,1.00891831,3130.3,3129.1,4.03375522]
[1767895794743,1.00891831,3130.3,3129.1,7.22956232]
[1767895794942,1.00891831,3130.3,3129.2,0.98906907]
[1767895795323,4.20160235,3130.2,3129.2,7.38044013]
[1767895795522,1.00691831,3130.2,3129.3,0.82184401]
[1767895795738,3.19659384,3130.3,3129.3,0.82184401]
[1767895795739,3.19659384,3130.3,3129.4,0.98906907]
[1767895796445,0.002,3130.3,3129.4,0.98906907]
[1767895796742,0.002,3130.3,3129.8,3.84899374]
[1767895796942,0.002,3130.3,3129.9,0.98906907]
[1767895797131,0.002,3130.3,3129.9,1.02100994]
[1767895797336,0.002,3130.3,3129.8,2.85992467]
[1767895797549,0.002,3130.3,3129.9,0.38489937]
[1767895798341,0.002,3130.3,3129.7,0.98906907]
[1767895798546,0.002,3130.3,3129.7,4.18424798]
[1767895799335,0.002,3130.3,3129.8,9.25006696]
[1767895799647,0.002,3130.5,3130.0,2.85992467]
[1767895800425,0.002,3130.5,3129.8,7.0440437]
[1767895800650,1.00891831,3130.5,3129.9,1.02392263]
[1767895801023,0.002,3130.5,3129.9,1.02392263]
[1767895801223,0.002,3130.5,3130.0,0.98906907]
[1767895801626,0.002,3130.5,3130.0,4.18395376]
[1767895801824,1.00691831,3130.4,3129.9,4.21885947]
[1767895802030,1.00691831,3130.4,3130.0,0.89538787]
[1767895802342,0.002,3130.5,3129.9,0.98906907]
[1767895802543,0.002,3130.5,3129.7,0.92524206]
[1767895802742,0.002,3130.5,3129.7,4.12038116]
[1767895803139,1.01329072,3130.4,3129.7,3.72987661]
[1767895803342,1.01329072,3130.4,3129.7,6.89308556]
[1767895803552,1.01329072,3130.4,3129.7,6.74439412]
[1767895803729,1.01329072,3130.3,3129.7,7.5824228]
[1767895803925,1.01529072,3130.5,3130.2,0.001]
[1767895805240,0.002,3130.5,3130.2,0.001]
[1767895809961,0.99562043,3130.3,3129.3,3.19554248]
[1767895810163,0.99562043,3130.3,3129.4,0.838]
[1767895810350,0.99562043,3130.3,3129.4,4.03346916]
[1767895810754,0.99562043,3130.1,3129.4,4.03346916]
[1767895810955,0.99562043,3130.1,3129.3,0.69865251]
[1767895811270,0.99562043,3130.1,3129.1,4.03375294]
[1767895811480,0.99562043,3130.1,3129.2,3.19564523]
[1767895811639,0.99562043,3130.1,3129.0,0.001]
[1767895811839,0.73849885,3130.0,3129.2,0.93105796]
[1767895812374,0.73849885,3130.0,3129.0,4.03486021]
[1767895812927,3.19499025,3129.9,3129.1,3.19580131]
[1767895813241,3.19499025,3129.9,3129.0,4.96595453]
[1767895814265,6.3899805,3129.9,3129.0,4.96595453]
[1767895814439,0.99562043,3129.8,3129.0,0.001]
[1767895814637,0.99562043,3129.8,3128.9,0.001]
[1767895814869,12.779961,3129.9,3128.7,0.001]
[1767895814870,0.99562043,3129.6,3128.7,0.001]
[1767895815441,0.99562043,3129.6,3128.6,0.001]
[1767895815670,0.99562043,3129.4,3128.1,0.001]
[1767895817351,0.99562043,3129.2,3128.1,0.001]
[1767895817554,0.99562043,3129.1,3128.1,0.93205796]
[1767895817752,0.99562043,3130.3,3128.7,0.93105796]
[1767895817953,0.99562043,3129.7,3128.3,0.838]
[1767895818983,0.99562043,3129.7,3128.3,1.76905796]
[1767895819156,0.99562043,3129.5,3128.3,1.76905796]
[1767895819356,0.99562043,3129.5,3128.1,0.001]
[1767895819997,0.99562043,3129.5,3128.2,3.22861745]
[1767895820305,1.058151,3129.4,3128.4,0.93105796]
[1767895820529,1.058151,3129.4,3128.4,0.96302318]
[1767895820793,3.19529652,3129.6,3128.4,0.96302318]
[1767895821500,6.39018466,3129.8,3128.6,0.93105796]
[1767895821695,6.39018466,3129.8,3128.5,6.39284]
[1767895821696,3.19509233,3129.8,3128.8,0.93105796]
[1767895823065,6.39018466,3129.8,3128.8,0.93105796]
[1767895823593,7.38519263,3130.1,3128.8,0.93105796]
[1767895823894,1.19572721,3130.0,3128.8,0.93105796]
[1767895824242,0.99562043,3129.9,3128.9,0.838]
[1767895825707,3.19509233,3129.8,3128.9,1.76905796]
[1767895825868,3.19509233,3129.8,3129.0,0.93105796]
[1767895826708,6.39018466,3129.8,3128.4,3.19644906]
[1767895826870,0.73858051,3129.7,3128.6,3.19622827]
[1767895827400,0.73858051,3129.7,3128.7,3.1961957]
[1767895827601,0.73858051,3129.7,3128.8,3.19607378]
[1767895828213,3.19525782,3129.7,3128.8,4.12713174]
[1767895828407,3.19525782,3129.7,3128.9,0.93105796]
[1767895829040,0.002,3129.6,3128.9,0.93105796]
[1767895829248,0.002,3129.6,3129.0,0.839]
[1767895829838,0.99562043,3129.5,3129.0,0.839]
[1767895830553,0.99562043,3129.5,3128.8,6.05794812]
[1767895830709,0.99562043,3129.5,3128.9,1.44479481]
[1767895831412,0.99562043,3129.4,3128.1,3.19781887]
[1767895831738,0.99562043,3128.7,3128.1,0.001]
[1767895831957,0.99562043,3128.5,3128.0,0.839]
[1767895832853,0.99562043,3128.5,3128.0,4.03592731]
[1767895833845,0.98623709,3128.8,3128.0,4.03592731]
[1767895834043,0.98623709,3128.8,3128.0,7.98822059]
[1767895834247,0.98623709,3129.3,3128.0,0.72339304]
[1767895834449,0.98623709,3129.3,3128.1,0.839]
[1767895834631,0.98623709,3129.1,3128.1,0.839]
[1767895835015,0.98623709,3129.1,3128.1,4.0358119]
[1767895835349,0.98623709,3129.1,3128.1,4.03582425]
[1767895835824,0.98623709,3129.1,3128.1,0.839]
[1767895836032,0.98623709,3128.9,3128.0,0.839]
[1767895836217,0.98623709,3128.9,3128.0,4.03585199]
[1767895836945,0.98623709,3128.8,3128.1,3.19681588]
[1767895838413,0.98623709,3128.8,3128.1,3.22878416]
[1767895838618,0.98623709,3128.8,3128.0,0.839]
[1767895838840,0.98623709,3128.7,3128.0,4.03592526]
[1767895839346,0.98623709,3128.7,3128.0,0.839]
[1767895839652,0.98623709,3128.7,3128.0,4.03592885]
[1767895840553,0.98623709,3128.6,3127.8,3.19808991]
[1767895840750,0.98623709,3128.6,3127.8,0.001]
[1767895840918,0.98623709,3128.6,3127.8,0.03297135]
[1767895841551,4.18224846,3128.9,3127.8,0.03297135]
[1767895841854,0.98823709,3128.8,3127.8,0.001]
[1767895842050,0.98823709,3128.8,3127.9,0.63954606]
[1767895842516,0.98823709,3128.8,3127.9,0.839]
[1767895843122,0.98623709,3128.6,3127.9,0.839]
[1767895845232,0.98623709,3128.6,3127.9,4.03602262]
[1767895845653,0.98623709,3128.6,3127.9,0.839]
[1767895845834,0.98623709,3128.6,3127.9,4.03603224]
[1767895846034,3.19621568,3128.7,3127.9,1.24270322]
[1767895846750,4.18245277,3128.7,3127.9,1.24270322]
[1767895847850,4.18245277,3128.7,3127.9,0.40370322]
[1767895848059,4.18245277,3128.7,3127.9,0.839]
[1767895848354,0.98623709,3128.6,3127.9,0.839]
[1767895848542,0.98623709,3128.6,3127.8,0.001]
[1767895849062,0.98623709,3128.6,3127.2,6.39]
[1767895849354,0.98623709,3128.4,3127.1,0.839]
[1767895849547,0.98623709,3128.2,3127.1,0.839]
[1767895849743,0.98623709,3128.2,3127.0,2.0]
[1767895849955,0.98623709,3128.2,3127.0,2.839]
[1767895850151,0.98623709,3128.2,3127.0,2.0]
[1767895851446,0.98623709,3128.0,3127.0,2.0]
[1767895851629,0.98623709,3127.8,3127.0,2.0]
[1767895853435,3.19723758,3127.7,3127.0,2.0]
[1767895853640,6.39447516,3127.7,3127.0,2.0]
[1767895853841,7.38071225,3127.7,3127.0,2.0]
[1767895854356,4.18342372,3127.8,3127.0,2.0]
[1767895854560,4.67556504,3127.8,3127.0,2.0]
[1767895854870,7.87275167,3127.8,3127.3,0.001]
[1767895855039,4.67556504,3127.8,3127.3,0.001]
[1767895855235,0.49214132,3127.8,3127.3,0.001]
[1767895855434,0.98623709,3128.1,3127.3,0.001]
[1767895855667,3.19693094,3128.0,3127.3,0.001]
[1767895855859,7.38009897,3128.0,3127.3,0.001]
[1767895857161,0.98623709,3127.9,3127.3,0.001]
[1767895857575,0.98623709,3127.7,3127.3,0.001]
[1767895857732,1.72428787,3127.7,3127.3,0.001]
[1767895858450,3.19713536,3127.8,3127.3,0.001]
[1767895859168,3.19707948,3127.9,3127.3,0.001]
[1767895861156,0.98623709,3127.8,3127.3,0.001]
[1767895861735,0.98623709,3127.6,3127.3,0.001]
[1767895861944,0.98623709,3127.6,3127.0,2.0]
[1767895862144,0.98623709,3127.4,3127.0,1e-08]
[1767895864297,0.9729218,3127.2,3126.1,4.19697741]
[1767895864454,0.9729218,3127.2,3126.1,0.99817299]
[1767895864804,0.9729218,3127.2,3126.2,3.19875942]
[1767895864950,0.9729218,3127.2,3126.2,3.93834831]
[1767895865151,6.39529306,3127.3,3126.3,0.99817299]
[1767895865354,6.39529306,3127.3,3126.4,0.99817299]
[1767895865675,1.00510165,3127.2,3126.3,0.839]
[1767895866052,1.00510165,3127.2,3126.2,0.839]
[1767895866251,3.1979533,3127.0,3126.2,0.839]
[1767895866682,1.00510165,3126.9,3126.0,4.20196789]
[1767895866896,1.00510165,3126.9,3125.8,0.839]
[1767895867255,1.00510165,3126.9,3125.9,3.19902514]
[1767895867452,1.00510165,3126.9,3125.8,4.0381724]
[1767895867691,1.00510165,3126.9,3125.9,0.50412355]
[1767895868382,0.74003947,3127.1,3125.9,0.50412355]
[1767895868383,1.00510165,3126.7,3125.9,0.50412355]
[1767895868776,1.00510165,3126.7,3125.8,3.19914736]
[1767895869084,1.00510165,3126.7,3125.7,4.03823115]
[1767895869248,1.00510165,3126.7,3125.4,3.19952523]
[1767895869456,1.00510165,3126.7,3125.5,0.839]
[1767895869649,1.00510165,3126.7,3125.3,1.00306315]
[1767895869854,1.00510165,3126.5,3125.4,0.839]
[1767895870395,1.37977331,3126.6,3125.4,0.839]
[1767895870396,1.00510165,3126.3,3125.4,0.839]
[1767895870968,1.00510165,3126.3,3125.2,7.40264065]
[1767895871172,1.00510165,3126.3,3125.3,0.839]
[1767895871373,1.00510165,3126.3,3125.3,1.84206315]
[1767895871585,1.00510165,3126.3,3125.4,1.82722722]
[1767895872267,1.00510165,3126.5,3125.4,1.82722722]
[1767895872484,1.00510165,3126.5,3125.4,4.20262823]
[1767895873183,1.00510165,3126.5,3125.5,1.00306315]
[1767895873366,6.39672486,3126.6,3125.5,1.00306315]
[1767895873753,7.40182651,3126.6,3125.5,1.00306315]
[1767895874475,1.00510165,3126.5,3125.3,1.84206315]
[1767895874784,1.00510165,3126.3,3125.4,3.19955291]
[1767895874991,1.00510165,3126.3,3125.4,4.03855291]
[1767895875888,1.00510165,3126.3,3125.5,3.19948332]
[1767895876680,4.20379708,3126.3,3125.6,0.839]
[1767895877572,1.00510165,3126.5,3125.6,0.839]
[1767895877776,6.39698065,3126.5,3125.6,2.3462178]
[1767895877973,1.00510165,3126.4,3125.3,4.2026965]
[1767895878160,1.00510165,3126.4,3125.4,4.03854157]
[1767895878368,1.00510165,3126.4,3125.4,5.0416356]
[1767895878602,6.39672486,3126.6,3125.4,5.0416356]
[1767895878802,1.00510165,3126.5,3125.6,1.00306315]
[1767895878972,1.00510165,3126.5,3125.7,0.18420632]
[1767895879177,1.00510165,3126.5,3125.5,1.84206315]
[1767895879900,1.00510165,3126.5,3125.3,3.19965278]
[1767895880079,1.00510165,3126.5,3125.4,0.839]
[1767895880808,1.00510165,3126.3,3125.4,4.03855609]
[1767895880990,1.00510165,3126.3,3125.4,4.86269503]
[1767895881166,1.00510165,3126.3,3125.4,1.66313894]
[1767895881366,1.00510165,3126.3,3125.9,0.001]
[1767895881682,1.00510165,3126.0,3124.3,1.00306315]
[1767895881984,1.00510165,3125.8,3124.4,1.00306315]
[1767895882161,1.84410165,3125.7,3124.6,1.00306315]
[1767895882362,1.18951182,3125.6,3124.6,1.00306315]
[1767895882564,7.40407781,3125.5,3124.4,3.20057538]
[1767895882762,1.00510165,3125.4,3124.2,4.03981466]
[1767895882992,1.00510165,3125.4,3124.2,1.84206315]
[1767895883697,1.00510165,3125.4,3124.3,3.20066152]
[1767895883892,0.74040778,3125.3,3124.3,0.8243642]
[1767895884273,0.74040778,3125.3,3123.3,0.08674281]
[1767895884274,1.00510165,3124.2,3123.3,0.08674281]
[1767895884494,1.00510165,3124.1,3123.3,0.08674281]
[1767895884671,1.00510165,3123.9,3123.2,0.08674281]
[1767895885001,3.20102432,3124.0,3123.3,0.08674281]
[1767895885198,3.20102432,3124.0,3122.8,4.29197402]
[1767895885199,10.42767846,3124.0,3122.8,1.08980596]
[1767895885501,1.00310166,3123.9,3122.6,0.92574281]
[1767895885672,1.00310166,3123.9,3122.8,0.08674281]
[1767895886009,1.00310166,3123.9,3122.6,4.12818098]
[1767895886166,1.00310166,3123.9,3122.8,0.08674281]
[1767895886371,7.22665414,3124.0,3122.8,0.08674281]
[1767895886372,1.00510165,3123.7,3122.8,0.08674281]
[1767895886682,3.20143424,3123.6,3122.7,3.28908169]
[1767895886883,4.20646258,3123.7,3122.8,3.20222271]
[1767895887501,0.82297558,3123.8,3123.1,0.08674281]
[1767895887502,4.02426062,3123.8,3123.1,0.08674281]
[1767895888291,7.22554566,3123.8,3123.1,0.08674281]
[1767895888490,1.00510165,3123.6,3122.7,0.08674281]
[1767895888695,3.20153673,3123.5,3122.7,0.08674281]
[1767895889197,4.2065686,3123.6,3122.7,3.28909264]
[1767895889390,1.00510165,3123.6,3122.7,3.28909264]
[1767895889590,3.9239211,3123.7,3122.7,4.02443393]
[1767895890186,4.92902275,3123.7,3122.7,4.02443393]
[1767895890385,3.9239211,3123.7,3122.8,1.00306315]
[1767895890717,3.20012368,3124.9,3124.0,1.08980596]
[1767895891003,6.40024736,3124.9,3123.8,0.92674281]
[1767895891207,6.40024736,3124.9,3123.8,1.84306315]
[1767895891373,3.20012368,3124.9,3123.9,1.00306315]
[1767895891576,0.74040778,3125.3,3124.1,1.00306315]
[1767895891881,0.74040778,3125.3,3124.0,0.08674281]
[1767895891882,7.670122,3126.1,3124.8,1.00306315]
[1767895892081,0.84,3126.2,3124.8,1.00306315]
[1767895892292,1.3211482,3126.2,3124.8,1.00306315]
[1767895892477,6.3973387,3126.3,3124.8,1.00306315]
[1767895892815,0.16682067,3127.2,3125.3,1.03000294]
[1767895892816,6.39656106,3126.7,3125.3,1.03000294]
[1767895892983,0.63965611,3126.6,3125.5,1.03000294]
[1767895893185,0.63965611,3126.6,3125.7,1.03000294]
[1767895893390,3.20007827,3126.9,3125.7,1.03000294]
[1767895893921,6.39815654,3126.9,3125.7,1.03000294]
[1767895894114,6.39815654,3126.9,3125.8,1.87000294]
[1767895894324,3.20007827,3126.9,3125.9,1.03000294]
[1767895894640,0.32000783,3126.8,3125.9,1.03000294]
[1767895894925,0.002,3126.9,3125.9,1.03000294]
[1767895895080,0.002,3126.9,3126.0,1.03000294]
[1767895895668,0.002,3126.9,3126.2,1.03000294]
[1767895895777,0.002,3127.9,3126.4,1.03000294]
[1767895895978,0.002,3127.9,3126.4,1.11674575]
[1767895896210,0.002,3127.9,3126.5,1.03000294]
[1767895896619,0.002,3127.9,3126.7,1.03000294]
[1767895896916,0.002,3127.9,3126.8,1.03000294]
[1767895897075,0.002,3127.6,3126.8,1.87000294]
[1767895897476,0.002,3127.6,3126.9,1.03000294]
[1767895898833,0.002,3127.6,3127.0,3.1979533]
[1767895899034,0.002,3127.6,3126.9,1.03000294]
[1767895899330,0.002,3127.6,3127.1,0.84]
[1767895900889,0.002,3127.6,3125.9,1.03000294]
[1767895901092,0.002,3127.6,3125.8,0.08674281]
[1767895901093,0.9831482,3127.6,3126.1,1.03000294]
[1767895901322,0.46585362,3127.5,3126.1,1.03000294]
[1767895901621,0.9831482,3127.6,3126.1,1.03000294]
[1767895902120,0.9831482,3127.6,3125.8,3.28584849]
[1767895902121,0.9811482,3127.4,3125.8,1.03000294]
[1767895902285,0.9811482,3127.2,3125.9,0.839]
[1767895902488,0.9811482,3127.2,3125.8,1.03000294]
[1767895902689,0.9811482,3127.2,3125.4,1.03000294]
[1767895902904,0.9811482,3127.0,3125.5,0.839]
[1767895903107,9.59355312,3127.1,3125.4,1.03000294]
[1767895903108,0.9811482,3126.8,3125.4,1.03000294]
[1767895903322,0.9811482,3126.8,3125.1,1.03100294]
[1767895903526,0.9811482,3126.8,3125.5,0.839]
[1767895904604,1.05747013,3126.9,3125.6,1.03000294]
[1767895904809,1.05747013,3126.9,3125.8,1.03000294]
[1767895904810,4.25557796,3126.9,3125.8,1.03000294]
[1767895905032,0.4255578,3126.8,3125.8,1.03000294]
[1767895906913,3.62374568,3126.8,3125.9,1.03000294]
[1767895907520,0.4255578,3126.8,3125.9,1.03000294]
[1767895907934,6.82201782,3126.8,3125.9,1.03000294]
[1767895908132,6.82201782,3126.8,3125.0,0.08674281]
[1767895908133,6.82201782,3126.8,3125.7,4.22927005]
[1767895908313,6.82201782,3126.8,3126.0,0.839]
[1767895908314,0.68220178,3126.7,3126.0,0.839]
[1767895908838,0.68220178,3126.7,3126.1,0.839]
[1767895909020,3.1979834,3127.0,3126.2,0.839]
[1767895909423,6.3959982,3127.0,3126.2,0.839]
[1767895910747,10.5751612,3127.0,3125.6,1.03000294]
[1767895910927,10.5751612,3127.0,3126.2,0.001]
[1767895911128,1.05751612,3126.9,3126.2,0.001]
[1767895911642,1.05751612,3126.9,3125.3,4.22967945]
[1767895911643,2.03866432,3126.9,3125.3,4.22967945]
[1767895911852,2.03866432,3126.9,3125.5,1.03000294]
[1767895912053,2.03866432,3126.9,3125.6,0.839]
[1767895912217,1.05751612,3126.9,3125.6,1.86900294]
[1767895912419,1.06515291,3126.8,3125.6,1.03000294]
[1767895912631,1.06515291,3126.8,3125.7,0.839]
[1767895913952,6.39652028,3126.7,3125.7,0.839]
[1767895914356,4.26332915,3126.8,3125.8,1.03000294]
[1767895914559,5.01763896,3127.5,3125.8,1.03000294]
[1767895914719,9.59263284,3127.4,3125.8,1.03000294]
[1767895915542,9.59263284,3127.4,3125.8,1.11674575]
[1767895916264,9.59263284,3127.4,3126.0,1.03000294]
[1767895917151,6.39508856,3127.4,3126.0,1.03000294]
[1767895917349,1.05737126,3127.3,3126.0,1.03000294]
[1767895918244,6.39549756,3127.2,3126.1,0.839]
[1767895918862,6.39549756,3127.2,3126.1,1.86900294]
[1767895919360,4.25502957,3127.3,3126.2,1.03000294]
[1767895919521,3.19744204,3127.5,3126.5,1.03000294]
[1767895919723,0.002,3127.6,3126.5,1.03000294]
[1767895920023,3.19936153,3127.6,3126.5,1.03000294]
[1767895920354,0.002,3127.6,3126.7,1.03000294]
[1767895920571,0.002,3127.6,3126.8,1.86900294]
[1767895920930,0.002,3127.6,3126.8,1.03000294]
[1767895921238,0.002,3127.6,3126.9,0.839]
[1767895921449,0.002,3127.6,3126.4,4.22856093]
[1767895921761,0.002,3127.6,3126.4,1.03000294]
[1767895921982,0.002,3127.6,3126.5,0.839]
[1767895922554,6.39667962,3127.6,3126.5,0.839]
[1767895922757,0.73778278,3127.5,3126.5,0.839]
[1767895924565,3.19754428,3127.4,3126.5,4.03744077]
[1767895924930,3.19754428,3127.4,3126.5,0.839]
[1767895925131,3.19754428,3127.4,3126.5,4.03744823]
[1767895925859,0.002,3127.3,3126.5,4.03744823]
[1767895926060,0.71548427,3127.3,3126.5,4.03744823]
[1767895926263,0.71548427,3127.3,3126.5,0.839]
[1767895926670,3.19774878,3127.2,3126.5,0.839]
[1767895926984,3.91316749,3127.3,3126.5,4.03745046]
[1767895927162,0.71548427,3127.3,3126.5,4.03745046]
[1767895927983,0.71548427,3127.3,3126.6,0.97865704]
[1767895927984,0.002,3127.3,3126.6,0.97865704]
[1767895928653,0.002,3127.3,3126.7,4.17691718]
[1767895929082,0.002,3127.3,3126.6,3.19834999]
[1767895929246,0.002,3127.3,3126.5,0.82146493]
[1767895929452,0.002,3127.3,3126.6,0.839]
[1767895930778,0.002,3127.3,3126.2,4.17733236]
[1767895930982,0.002,3127.3,3126.3,0.839]
[1767895931752,0.95817916,3127.3,3125.9,0.97965704]
[1767895931953,0.95817916,3127.3,3126.0,0.839]
[1767895932153,0.95617916,3127.1,3126.0,0.839]
[1767895932353,0.95617916,3127.1,3126.0,4.03795533]
[1767895932663,0.95617916,3127.1,3126.0,0.839]
[1767895932871,3.1979533,3127.0,3126.0,4.03792167]
[1767895933073,7.35208576,3127.0,3125.9,3.20003897]
[1767895933300,0.73520858,3126.9,3126.0,7.23692731]
[1767895933504,0.73520858,3126.9,3126.0,4.03795099]
[1767895934077,0.73520858,3126.9,3126.0,0.839]
[1767895934317,0.73520858,3126.9,3126.0,4.03797632]
[1767895934521,0.73520858,3126.9,3126.0,4.17763336]
[1767895934690,3.1979533,3127.0,3126.1,1.81765704]
[1767895935086,6.39549756,3127.2,3126.1,5.01650614]
[1767895935617,6.39549756,3127.2,3126.2,0.97865704]
[1767895937017,0.002,3127.3,3126.3,0.97865704]
[1767895939215,0.002,3127.0,3126.5,0.97865704]
[1767895939419,0.002,3127.0,3126.6,0.839]
[1767895940522,0.002,3127.3,3126.6,0.839]
[1767895941508,0.95617916,3127.2,3126.6,0.839]
[1767895942002,0.95617916,3127.2,3125.9,0.97965704]
[1767895942217,0.95617916,3127.2,3126.0,0.839]
[1767895942635,0.95617916,3127.2,3126.0,1.81765704]
[1767895942932,0.95617916,3127.2,3126.0,5.01657955]
[1767895943134,0.95617916,3127.2,3126.0,5.83824246]
[1767895943539,6.39570208,3127.1,3126.0,5.83824246]
[1767895945039,6.39570208,3127.1,3126.1,0.97865704]
[1767895945434,6.39570208,3127.1,3126.1,4.1774521]
[1767895945649,6.39570208,3127.1,3126.2,0.97865704]
[1767895945830,0.63957021,3127.0,3126.2,0.97865704]
[1767895947539,1.59574937,3127.0,3126.0,0.839]
[1767895947735,7.35229032,3126.9,3126.0,0.839]
[1767895948243,7.35229032,3126.9,3125.9,4.17871534]
[1767895948458,7.35229032,3126.9,3126.0,0.839]
[1767895948639,0.79918605,3126.8,3126.0,0.839]
[1767895948840,0.79918605,3126.8,3126.0,4.03794659]
[1767895949158,3.19805558,3126.9,3126.1,0.97865704]
[1767895949658,6.39580132,3127.1,3126.1,4.17751015]
[1767895949960,6.39580132,3127.1,3126.1,0.97865704]
[1767895950561,6.39580132,3127.1,3125.9,0.001]
[1767895950562,0.95617916,3127.0,3125.9,0.001]
[1767895950743,0.95617916,3127.0,3126.0,0.839]
[1767895951061,0.95617916,3126.1,3125.1,4.03885086]
[1767895951227,0.95617916,3126.1,3125.1,0.839]
[1767895951744,0.95617916,3126.1,3125.1,4.03889232]
[1767895951943,3.19869096,3126.3,3125.2,0.97865704]
[1767895952340,3.19856007,3126.5,3125.2,0.97865704]
[1767895952538,3.19839359,3126.6,3125.2,1.06539985]
[1767895952856,6.39678718,3126.6,3125.2,1.06539985]
[1767895953666,0.96775486,3126.5,3125.1,3.19989232]
[1767895953829,3.19866935,3126.3,3125.3,0.93173809]
[1767895954845,6.39672486,3126.6,3125.3,0.93173809]
[1767895955050,3.19836243,3126.6,3125.4,0.93173809]
[1767895955247,3.19836243,3126.6,3125.5,1.77073809]
[1767895955248,6.39672486,3126.6,3125.5,1.77073809]
[1767895955471,3.19836243,3126.6,3125.6,0.93173809]
[1767895955656,0.96775486,3126.6,3125.7,0.17707381]
[1767895955867,3.19846473,3126.5,3125.5,1.77073809]
[1767895956063,6.39692946,3126.5,3125.5,4.97020503]
[1767895956267,6.39692946,3126.5,3125.6,0.839]
[1767895957168,0.96775486,3126.4,3125.4,3.1995603]
[1767895957471,0.96775486,3126.4,3125.4,0.839]
[1767895957677,6.39692946,3126.5,3125.4,0.839]
[1767895957678,1.70422329,3126.3,3125.4,0.839]
[1767895957879,1.70422329,3126.3,3124.4,0.93173809]
[1767895957880,6.39877142,3125.6,3124.4,0.93173809]
[1767895958173,6.39877142,3125.6,3123.9,3.28781413]
[1767895958174,0.96775486,3125.5,3123.9,4.13283464]
[1767895958339,0.96775486,3125.5,3124.0,0.93173809]
[1767895958538,1.78830749,3125.5,3124.3,3.20062138]
[1767895958942,1.78830749,3125.5,3124.4,3.20061376]
[1767895959941,4.16696081,3125.8,3124.5,0.93173809]
[1767895960167,0.839,3125.7,3124.6,0.93173809]
[1767895960364,4.03828336,3125.7,3124.6,0.93173809]
[1767895960568,7.23756672,3125.7,3124.6,0.93173809]
[1767895960770,0.96775486,3125.6,3124.0,0.93173809]
[1767895960967,10.43685008,3125.7,3123.7,0.93173809]
[1767895960968,0.96775486,3125.4,3123.7,0.93173809]
[1767895961476,0.96775486,3125.4,3123.4,0.93173809]
[1767895961781,0.96775486,3125.2,3123.4,0.93173809]
[1767895961948,0.96775486,3125.0,3123.3,3.201653]
[1767895962148,0.96775486,3125.0,3123.4,0.93173809]
[1767895962348,0.96775486,3124.8,3123.5,1.66525137]
[1767895962677,0.96775486,3124.8,3123.6,0.93173809]
[1767895962874,1.89674477,3124.9,3123.5,0.73351328]
[1767895963076,0.96775486,3124.8,3123.1,0.93173809]